bitfinex/quotes_ETHUSD_20250815
["timestamp","ask_amount","ask_price","bid_price","bid_amount"]
[1755261726418,0.46097058,4637.3,4637.2,7.00797373]
[1755261726619,0.57608215,4638.1,4637.9,2.15614825]
[1755261726925,0.002,4638.4,4638.3,2.15596231]
[1755261727120,0.46369854,4638.4,4638.3,4.111]
[1755261727333,0.46369854,4638.4,4638.3,6.26696231]
[1755261727729,0.46369854,4638.4,4638.3,4.111]
[1755261728051,0.46369854,4638.4,4638.3,6.26696231]
[1755261728472,1.03978069,4638.4,4638.3,4.111]
[1755261728615,0.46369854,4638.4,4638.3,6.26696231]
[1755261728816,0.46369854,4638.4,4638.3,7.10926192]
[1755261730473,0.46369854,4638.4,4638.3,7.21726192]
[1755261730772,0.46289854,4638.4,4638.3,7.21726192]
[1755261732313,0.46289854,4638.4,4638.3,8.38366192]
[1755261732479,0.0012,4638.4,4638.3,8.38366192]
[1755261732859,0.0012,4638.4,4638.3,7.21726192]
[1755261733289,0.0012,4638.4,4638.3,7.95376192]
[1755261733509,0.0012,4638.4,4638.3,8.38366192]
[1755261733815,0.0012,4638.4,4638.3,3.84276192]
[1755261734112,0.0012,4638.4,4638.3,7.94176192]
[1755261734609,0.0012,4638.4,4638.3,8.37166192]
[1755261735863,0.0012,4638.4,4638.3,11.37166192]
[1755261736286,0.0012,4638.4,4638.3,10.20526192]
[1755261736505,0.0012,4638.4,4638.3,10.94176192]
[1755261736784,0.0012,4638.4,4638.3,10.19926192]
[1755261737019,0.0012,4638.4,4638.3,2.26396231]
[1755261737184,0.0012,4638.4,4638.3,4.2]
[1755261737386,0.91561872,4638.4,4638.3,4.2]
[1755261737697,1.59981872,4638.4,4638.3,4.2]
[1755261738129,1.59981872,4638.4,4638.3,4.09]
[1755261738290,4.0501201,4638.4,4638.3,4.09]
[1755261738487,3.75573455,4638.4,4638.3,4.09]
[1755261739405,4.45573455,4638.4,4638.3,4.09]
[1755261739787,5.03416365,4638.4,4638.3,4.09]
[1755261740004,2.19404782,4638.4,4638.3,4.09]
[1755261740205,1.61561872,4638.4,4638.3,4.09]
[1755261740407,1.1531,4638.4,4638.3,4.09]
[1755261740604,1.61561872,4638.4,4638.3,4.09]
[1755261740793,1.1531,4638.4,4638.3,4.09]
[1755261741030,0.7012,4638.4,4638.3,4.09]
[1755261741191,1.1531,4638.4,4638.3,4.198]
[1755261741396,2.15596231,4638.3,4638.0,0.7]
[1755261741593,6.75462751,4638.2,4638.0,0.7]
[1755261741893,0.55,4637.9,4636.5,0.0018]
[1755261742092,2.15675279,4636.6,4636.5,0.0018]
[1755261742405,2.15668073,4636.8,4636.5,4.0848]
[1755261742620,2.84088073,4636.8,4636.5,0.0018]
[1755261742821,0.6842,4636.8,4636.5,0.0018]
[1755261743036,2.15675279,4636.6,4636.5,0.0018]
[1755261743614,2.15665073,4636.9,4636.5,0.0018]
[1755261743816,0.108,4637.0,4636.6,4.081]
[1755261744042,2.15670627,4636.7,4636.6,4.0818]
[1755261744650,2.15670627,4636.7,4636.6,0.0008]
[1755261744846,3.73494035,4636.7,4636.6,0.0008]
[1755261745053,3.84294035,4636.7,4636.6,0.0008]
[1755261745849,2.15698539,4636.1,4636.0,0.001]
[1755261747041,5.84118539,4636.1,4636.0,0.001]
[1755261747271,6.56816146,4636.1,4636.0,0.001]
[1755261748037,6.11626146,4636.1,4636.0,0.001]
[1755261748930,6.56816146,4636.1,4636.0,0.001]
[1755261749232,7.11816146,4636.1,4636.0,0.001]
[1755261750455,0.55,4634.3,4632.0,0.4299]
[1755261750768,5.70819574,4633.5,4633.1,0.04]
[1755261750948,9.77719574,4633.5,4633.4,1e-08]
[1755261751379,10.91329574,4633.5,4633.4,1e-08]
[1755261751552,11.35542982,4633.5,4633.4,1e-08]
[1755261751933,11.35542982,4633.5,4633.1,1e-08]
[1755261751934,2.70833549,4633.2,4633.1,1e-08]
[1755261752138,5.70833549,4633.2,4633.1,1e-08]
[1755261752454,10.91043549,4633.2,4633.1,1e-08]
[1755261753042,10.91143549,4633.2,4633.1,1e-08]
[1755261753247,7.11951156,4633.2,4633.1,1e-08]
[1755261753549,11.18551156,4633.2,4633.1,1e-08]
[1755261753879,10.73361156,4633.2,4633.1,1e-08]
[1755261754179,10.04941156,4633.2,4633.1,1e-08]
[1755261754378,5.98341156,4633.2,4633.1,1e-08]
[1755261754582,5.43341156,4633.2,4633.1,1e-08]
[1755261754881,5.15833549,4633.2,4633.1,1e-08]
[1755261755440,6.29443549,4633.2,4633.1,1e-08]
[1755261755792,1.1361,4634.3,4633.1,1e-08]
[1755261755969,0.108,4633.2,4633.1,1e-08]
[1755261756743,0.108,4633.8,4633.1,1.21820001]
[1755261757069,0.108,4633.8,4633.1,0.10800001]
[1755261757270,0.55,4633.5,4632.1,0.04]
[1755261757480,2.26672202,4632.4,4632.1,0.04]
[1755261757674,2.15878121,4632.3,4632.1,0.04]
[1755261757842,0.108,4632.4,4632.1,0.04]
[1755261758042,2.15880143,4632.2,4632.1,0.04]
[1755261759369,6.89270143,4632.2,4632.1,0.04]
[1755261759747,6.43660143,4632.2,4632.1,0.04]
[1755261760144,5.70880143,4632.2,4632.1,0.04]
[1755261760348,6.89270143,4632.2,4632.1,0.04]
[1755261761253,5.70884803,4632.1,4632.0,1e-08]
[1755261761490,6.89274803,4632.1,4632.0,1e-08]
[1755261761997,10.94674803,4632.1,4632.0,1e-08]
[1755261762154,6.89274803,4632.1,4632.0,1e-08]
[1755261762340,9.76284803,4632.1,4632.0,1e-08]
[1755261762748,9.76184803,4632.1,4632.0,1e-08]
[1755261763248,5.70884803,4632.1,4632.0,1e-08]
[1755261763607,0.4561,4633.5,4632.0,1e-08]
[1755261763798,0.11839,4633.4,4632.0,1.11020001]
[1755261764094,2.15834973,4633.2,4632.0,1.11020001]
[1755261764248,0.11839,4633.4,4632.1,0.02158848]
[1755261764450,0.04,4633.9,4632.1,0.02158848]
[1755261764667,0.04,4633.9,4632.2,1.1102]
[1755261764864,0.04,4633.9,4632.3,1.13178754]
[1755261765194,0.04,4633.9,4632.0,1e-08]
[1755261765195,2.15805602,4633.8,4632.5,2.15861925]
[1755261765363,0.04,4633.9,4632.6,0.32688193]
[1755261765560,0.04,4633.9,4632.4,1.1102]
[1755261765765,0.04,4633.9,4632.5,0.02158661]
[1755261765766,2.15805602,4633.8,4632.5,0.02158661]
[1755261765967,2.15810259,4633.7,4632.4,3.26887553]
[1755261766297,2.15842274,4633.1,4632.4,1.1102]
[1755261766470,2.15842743,4633.1,4632.4,1.1102]
[1755261767048,0.55,4633.6,4632.4,1.1102]
[1755261767250,3.0,4633.5,4632.4,1.1102]
[1755261767473,2.15824232,4633.4,4632.4,1.1102]
[1755261767793,0.04,4633.9,4632.5,0.02158661]
[1755261767993,0.04,4633.9,4632.6,1.1102]
[1755261768196,0.04,4633.9,4633.1,2.1583754]
[1755261768480,0.04,4633.9,4633.1,0.43168972]
[1755261768677,0.04,4633.9,4633.2,0.443]
[1755261768988,2.15824533,4633.4,4632.7,0.6672]
[1755261769201,2.15824253,4633.4,4632.6,0.443]
[1755261769510,2.15824253,4633.4,4632.3,4.044]
[1755261769511,2.26643725,4633.0,4632.4,0.108]
[1755261769715,0.108,4633.0,4632.3,4.044]
[1755261769952,0.22663857,4633.0,4632.1,0.443]
[1755261770118,0.108,4632.5,4632.1,0.443]
[1755261770319,0.108,4632.5,4632.0,1e-08]
[1755261770822,0.108,4632.5,4632.0,0.44300001]
[1755261771210,2.26666602,4632.5,4632.0,0.44300001]
[1755261771544,0.55051921,4632.5,4632.0,1e-08]
[1755261771838,2.15884803,4632.1,4632.0,1e-08]
[1755261772232,2.26684803,4632.1,4632.0,1e-08]
[1755261773040,2.26604803,4632.1,4632.0,1e-08]
[1755261774011,5.81604803,4632.1,4632.0,1e-08]
[1755261774205,6.85289624,4632.1,4632.0,1e-08]
[1755261774847,7.45818764,4632.1,4632.0,1e-08]
[1755261775544,11.49118764,4632.1,4632.0,1e-08]
[1755261775850,0.55,4631.7,4631.6,1e-08]
[1755261776162,6.27527408,4631.7,4631.6,1e-08]
[1755261776551,7.45917408,4631.7,4631.6,1e-08]
[1755261776850,8.42099027,4631.7,4631.6,1e-08]
[1755261777444,12.44999027,4631.7,4631.6,1e-08]
[1755261777774,11.26609027,4631.7,4631.6,1e-08]
[1755261778271,11.26609027,4631.7,4631.1,0.04]
[1755261778272,0.55,4631.6,4631.1,0.04]
[1755261778435,5.15922375,4631.3,4631.1,0.04]
[1755261778637,0.56623961,4631.2,4631.1,0.04]
[1755261778972,1.14210333,4631.2,4631.1,0.04]
[1755261779172,1.14210333,4631.2,4631.1,1.1502]
[1755261779480,0.56623961,4631.2,4631.1,0.04]
[1755261780074,2.72550718,4631.2,4631.1,0.04]
[1755261780479,0.56623961,4631.2,4631.1,0.04]
[1755261780664,0.56623961,4631.2,4631.1,1.1502]
[1755261780865,0.45823961,4631.2,4631.1,1.1502]
[1755261781683,0.45743961,4631.2,4631.1,1.1502]
[1755261781855,0.45743961,4631.2,4631.1,1.151]
[1755261782340,0.108,4631.6,4631.1,1.151]
[1755261782677,0.57705397,4631.4,4631.2,1.1102]
[1755261782975,1.15410794,4632.0,4631.3,1.1102]
[1755261782976,0.57705397,4631.6,4631.3,1.1102]
[1755261783140,0.57705397,4631.6,4631.4,1.1102]
[1755261783536,0.57705397,4631.5,4631.3,0.108]
[1755261783842,0.57705397,4631.4,4631.3,0.108]
[1755261784066,0.68505397,4631.4,4631.1,0.0408]
[1755261784682,0.57705397,4631.3,4631.1,0.0408]
[1755261784891,0.68505397,4631.4,4631.2,1.1102]
[1755261785188,0.57705397,4631.6,4631.3,1.1102]
[1755261785356,0.76940529,4631.9,4631.3,1.1102]
[1755261785357,0.57705397,4631.9,4631.3,1.1102]
[1755261785552,0.57705397,4632.0,4631.8,0.108]
[1755261785891,0.57705397,4632.3,4631.9,1.1102]
[1755261786096,0.57705397,4632.4,4632.0,1.1497]
[1755261786376,0.0672,4633.2,4632.7,2.26656367]
[1755261786576,0.0672,4633.2,4632.7,2.15856367]
[1755261786736,0.0672,4633.2,4632.9,0.108]
[1755261786941,0.0672,4633.2,4633.0,0.4555]
[1755261787136,0.0672,4633.2,4632.9,0.108]
[1755261787388,0.0672,4633.2,4633.1,0.4555]
[1755261788178,0.0672,4633.2,4633.1,1.1497]
[1755261789571,0.0672,4633.2,4633.1,0.4555]
[1755261789931,0.0672,4633.2,4632.9,0.108]
[1755261790414,0.0672,4633.2,4632.9,0.5635]
[1755261790707,0.0672,4633.2,4632.4,0.6942]
[1755261790917,0.108,4633.1,4632.5,0.108]
[1755261791074,2.15861063,4632.7,4632.3,0.108]
[1755261791270,0.108,4633.1,4632.3,0.108]
[1755261791511,2.26674689,4632.4,4631.7,0.5635]
[1755261791733,2.15889343,4632.1,4631.3,0.6942]
[1755261792010,0.108,4632.0,4631.3,0.8022]
[1755261792180,2.15912,4631.6,4631.1,5.6813]
[1755261792385,0.108,4631.7,4631.1,0.1488]
[1755261792700,2.2670582,4631.7,4631.1,0.0408]
[1755261792889,2.1592293,4631.3,4631.1,0.0408]
[1755261793088,0.108,4631.3,4631.1,0.0408]
[1755261793988,2.26723377,4631.3,4631.1,0.0408]
[1755261794199,0.108,4631.3,4631.1,0.0408]
[1755261794515,0.108,4631.3,4631.1,0.0418]
[1755261795116,0.002,4631.4,4631.2,0.4555]
[1755261795338,0.002,4631.4,4629.1,0.04]
[1755261795479,2.15950072,4630.7,4629.4,0.4555]
[1755261795677,5.64909894,4630.7,4629.4,0.4555]
[1755261796002,6.21841436,4630.7,4629.5,0.108]
[1755261796383,6.21841436,4630.7,4629.3,0.6942]
[1755261796384,6.21841436,4630.7,4629.2,0.001]
[1755261796584,6.92901436,4630.7,4629.3,0.108]
[1755261797685,11.94491436,4630.7,4630.6,1e-08]
[1755261798016,7.47901436,4630.7,4630.6,1e-08]
[1755261798378,6.76841436,4630.7,4630.6,1e-08]
[1755261798578,7.94791436,4630.7,4630.6,1e-08]
[1755261798778,10.76441436,4630.7,4630.6,1e-08]
[1755261799402,10.76341436,4630.7,4630.6,1e-08]
[1755261799677,6.76841436,4630.7,4630.6,1e-08]
[1755261799899,10.76241436,4630.7,4630.6,1e-08]
[1755261800212,2.1601538,4629.3,4629.2,0.001]
[1755261800574,0.108,4629.3,4629.2,0.001]
[1755261800772,2.1601538,4629.3,4629.2,0.4565]
[1755261801192,2.1601538,4629.3,4629.2,0.001]
[1755261803186,0.108,4629.4,4629.2,0.001]
[1755261803382,0.108,4629.4,4629.2,1.1507]
[1755261803718,0.108,4630.1,4629.3,1.2577]
[1755261803923,0.108,4630.8,4629.5,2.16006048]
[1755261804124,0.002,4631.4,4630.0,0.108]
[1755261804309,0.108,4631.3,4630.6,0.108]
[1755261804509,0.108,4631.3,4630.7,1.1497]
[1755261804710,0.002,4631.4,4631.2,0.108]
[1755261804894,0.002,4631.4,4631.3,2.15922095]
[1755261805095,0.002,4631.4,4631.3,1.1497]
[1755261805639,0.002,4631.4,4630.7,1.27547]
[1755261805935,0.108,4631.3,4630.2,1.1497]
[1755261806082,0.002,4631.4,4630.4,1.1712964]
[1755261806278,0.108,4631.3,4630.7,0.108]
[1755261806923,0.108,4631.3,4630.8,0.4555]
[1755261807093,0.002,4631.4,4630.9,1.1497]
[1755261807616,0.002,4631.4,4630.8,2.15944874]
[1755261807829,0.002,4631.4,4631.0,3.30905474]
[1755261808031,0.002,4631.4,4631.3,2.26722095]
[1755261808388,0.002,4631.4,4631.3,3.41692095]
[1755261808883,0.002,4631.4,4631.3,7.39792095]
[1755261809786,0.002,4631.4,4631.3,5.2387]
[1755261810120,0.002,4631.4,4631.3,4.5445]
[1755261810522,0.002,4631.4,4631.3,4.089]
[1755261810923,0.002,4631.4,4631.3,3.981]
[1755261811125,0.002,4631.4,4631.1,0.108]
[1755261811287,0.002,4631.4,4630.6,0.001]
[1755261811288,0.22890462,4631.4,4630.6,0.001]
[1755261811483,2.49607914,4631.4,4630.6,0.001]
[1755261811719,0.002,4631.4,4630.7,0.4555]
[1755261811926,0.002,4631.4,4630.8,2.85365409]
[1755261812111,0.002,4631.4,4630.9,2.15940395]
[1755261812706,0.002,4631.4,4631.0,1.1497]
[1755261812907,0.002,4631.4,4631.1,0.33091039]
[1755261813087,0.002,4631.4,4631.3,2.15922095]
[1755261813285,0.002,4631.4,4631.3,6.13322095]
[1755261813533,0.002,4631.4,4631.3,7.28292095]
[1755261814306,0.002,4631.4,4631.3,3.974]
[1755261814889,0.002,4631.4,4630.6,2.16053742]
[1755261814890,0.002,4631.4,4630.8,3.971]
[1755261815398,0.002,4631.4,4630.6,2.16054014]
[1755261815399,0.21731323,4631.4,4630.7,3.971]
[1755261815604,0.7,4631.0,4630.7,3.971]
[1755261817629,0.7,4631.0,4630.8,1.15829454]
[1755261817926,0.7,4631.0,4630.9,2.15940745]
[1755261818129,0.7,4631.0,4630.9,2.85940745]
[1755261818286,0.7,4631.0,4630.9,4.19735717]
[1755261818487,0.0012,4631.4,4631.0,2.15931871]
[1755261818729,0.0012,4631.4,4631.0,2.59601871]
[1755261818994,0.0012,4631.4,4631.1,0.4367]
[1755261819192,0.0012,4631.4,4631.1,2.59601057]
[1755261819402,0.0012,4631.4,4631.2,0.4367]
[1755261819604,0.0012,4631.4,4631.3,3.965]
[1755261819803,0.0012,4631.4,4631.3,5.1017]
[1755261820058,0.0012,4631.4,4631.3,4.4017]
[1755261820596,0.0012,4631.4,4631.3,3.965]
[1755261820818,0.0012,4631.4,4630.7,0.4367]
[1755261821141,0.0012,4631.4,4631.1,3.962]
[1755261821645,2.67640614,4631.4,4631.1,3.962]
[1755261821797,0.51722863,4631.4,4630.9,3.962]
[1755261821998,2.15927612,4631.2,4630.9,3.962]
[1755261822221,0.0012,4631.4,4630.9,3.962]
[1755261822419,0.108,4631.2,4630.9,3.962]
[1755261823109,0.0012,4631.4,4631.1,0.108]
[1755261823314,0.0012,4631.4,4631.3,2.15922095]
[1755261823510,0.0012,4631.4,4631.2,1.1367]
[1755261823830,0.0012,4631.4,4631.3,2.15922095]
[1755261824237,0.0012,4631.4,4631.3,1.1367]
[1755261824416,0.0012,4631.4,4631.3,3.29592095]
[1755261824614,0.0012,4631.4,4631.3,1.1367]
[1755261824841,0.0012,4631.4,4631.3,0.4367]
[1755261824996,0.0012,4631.4,4631.1,0.108]
[1755261824997,0.0012,4631.4,4631.1,2.15930847]
[1755261825340,3.0,4631.2,4629.2,0.001]
[1755261825542,1.025,4631.3,4629.2,0.001]
[1755261825543,8.53,4631.1,4629.2,0.001]
[1755261825754,2.1601538,4629.3,4629.2,0.001]
[1755261826858,6.1851538,4629.3,4629.2,0.001]
[1755261827063,7.01967566,4629.3,4629.2,0.001]
[1755261827435,7.56967566,4629.3,4629.2,0.001]
[1755261828622,6.54467566,4629.3,4629.2,0.001]
[1755261828823,5.99467566,4629.3,4629.2,0.001]
[1755261829664,3.83452186,4629.3,4629.2,0.001]
[1755261829879,3.0,4630.8,4629.2,0.4377]
[1755261830058,2.15959399,4630.5,4629.2,1.1377]
[1755261830364,2.16000688,4629.7,4629.2,1.1377]
[1755261830664,2.15998559,4629.7,4629.2,0.701]
[1755261830836,2.1601538,4629.3,4629.2,0.001]
[1755261831523,6.7351538,4629.3,4629.2,0.001]
[1755261831724,6.7351538,4629.3,4629.2,0.0018]
[1755261832864,6.7351538,4629.3,4629.2,1e-08]
[1755261833164,5.7101538,4629.3,4629.2,1e-08]
[1755261833464,6.1385538,4629.3,4629.2,1e-08]
[1755261833824,2.16020046,4629.2,4629.1,1e-08]
[1755261834029,6.73520046,4629.2,4629.1,1e-08]
[1755261834453,10.67820046,4629.2,4629.1,1e-08]
[1755261834653,5.71020046,4629.2,4629.1,1e-08]
[1755261835472,2.16010645,4629.5,4629.1,1e-08]
[1755261835666,2.15973153,4630.3,4629.1,1.13670001]
[1755261835869,0.4296,4631.4,4629.4,0.108]
[1755261835870,0.108,4630.1,4629.4,0.108]
[1755261836079,0.108,4630.1,4629.5,5.0777]
[1755261836381,2.19941488,4630.9,4629.9,2.15987386]
[1755261836666,0.04,4630.9,4629.1,1e-08]
[1755261836870,0.108,4629.7,4629.1,0.10800001]
[1755261837076,2.26799742,4629.7,4629.1,1e-08]
[1755261837243,0.108,4629.7,4629.1,1e-08]
[1755261837632,2.26797054,4629.7,4629.1,1e-08]
[1755261837969,2.71075105,4629.7,4629.1,1e-08]
[1755261838130,2.16001952,4629.6,4629.1,1e-08]
[1755261838523,2.16011303,4629.4,4629.1,1e-08]
[1755261838749,2.26811303,4629.4,4629.1,1e-08]
[1755261839272,0.108,4629.4,4629.1,1e-08]
[1755261840139,2.26811077,4629.4,4629.1,1e-08]
[1755261840471,0.108,4629.5,4629.2,1.1367]
[1755261840684,0.108,4630.1,4629.3,1.2447]
[1755261840864,0.04,4630.9,4629.5,3.0]
[1755261841037,0.04,4630.9,4629.7,3.0]
[1755261841229,0.04,4630.9,4630.8,0.108]
[1755261841434,0.04,4630.9,4630.8,6.20045409]
[1755261841776,0.04,4630.9,4630.8,7.33715409]
[1755261842175,0.04,4630.9,4630.8,7.33615409]
[1755261842387,0.0012,4631.4,4630.9,2.15940745]
[1755261842623,0.042,4633.9,4631.6,2.15908109]
[1755261842734,0.042,4633.9,4632.7,2.15856843]
[1755261842939,0.042,4633.9,4632.7,6.11015411]
[1755261843154,0.042,4633.9,4632.9,2.15846724]
[1755261843377,0.042,4633.9,4632.7,5.1747]
[1755261843378,0.042,4633.9,4633.0,3.95158428]
[1755261843585,0.042,4633.9,4633.7,2.15807761]
[1755261843740,0.042,4633.9,4633.8,1.1367]
[1755261844083,0.042,4633.9,4633.8,1.26628056]
[1755261844286,0.042,4633.9,4633.8,1.2447]
[1755261844578,0.042,4633.9,4633.8,5.1727]
[1755261844760,0.042,4633.9,4633.8,7.33075602]
[1755261845402,0.042,4633.9,4633.8,1.2447]
[1755261845718,0.042,4633.9,4633.8,3.927]
[1755261845880,0.042,4633.9,4633.8,3.925]
[1755261846210,0.042,4633.9,4633.8,5.0069]
[1755261846370,0.002,4634.0,4633.9,2.15800945]
[1755261846566,0.12643,4636.9,4635.2,2.15740421]
[1755261846567,1e-08,4635.3,4635.2,2.15740421]
[1755261846766,0.04,4636.9,4635.3,5.15735766]
[1755261847010,0.04,4636.9,4635.5,3.0]
[1755261847165,0.04,4636.9,4635.9,2.15707845]
[1755261847360,0.04,4636.9,4636.8,0.108]
[1755261847608,0.04,4636.9,4636.8,4.05256659]
[1755261847770,0.04,4636.9,4636.8,5.13446659]
[1755261847974,0.04,4636.9,4636.8,5.1129]
[1755261848416,0.04,4636.9,4636.8,5.1119]
[1755261848944,0.04,4636.9,4636.8,1.1899]
[1755261849095,0.04,4636.9,4636.8,5.1089]
[1755261849297,0.04,4636.9,4636.8,1.1899]
[1755261849467,0.04,4636.9,4636.8,0.108]
[1755261849669,0.04,4636.9,4636.8,4.026]
[1755261849871,0.04,4636.9,4636.8,3.918]
[1755261850207,0.27045848,4636.9,4636.8,3.918]
[1755261850390,2.15683655,4636.5,4636.3,0.108]
[1755261850614,0.04,4636.9,4636.4,3.917]
[1755261850615,0.108,4636.6,4636.4,3.917]
[1755261850907,0.148,4636.9,4636.5,3.917]
[1755261851204,0.04,4636.9,4636.6,4.9989]
[1755261851376,0.04,4636.9,4636.8,0.108]
[1755261851709,0.04,4636.9,4636.4,0.108]
[1755261852016,0.04,4636.9,4636.5,3.916]
[1755261852322,0.108,4636.7,4635.6,5.291]
[1755261852607,0.108,4636.7,4635.6,5.183]
[1755261852608,0.108,4636.5,4635.6,5.183]
[1755261852925,0.108,4635.9,4635.7,3.914]
[1755261853221,0.22650364,4635.8,4635.7,3.914]
[1755261853374,0.108,4636.2,4635.7,3.914]
[1755261853914,0.108,4636.2,4635.6,5.183]
[1755261854068,0.55,4636.7,4635.8,3.912]
[1755261854267,0.108,4636.0,4635.8,3.912]
[1755261854681,0.33449097,4636.0,4635.8,3.912]
[1755261854919,2.15707845,4635.9,4635.8,3.912]
[1755261855767,2.15707845,4635.9,4635.6,5.183]
[1755261855966,0.33449097,4636.0,4635.1,0.108]
[1755261855967,2.26517151,4635.7,4635.1,0.108]
[1755261856174,0.22649097,4636.0,4635.2,3.909]
[1755261856487,0.22649097,4636.0,4634.6,0.108]
[1755261856488,2.1572578,4635.6,4635.3,3.908]
[1755261856689,3.0,4636.8,4635.3,3.908]
[1755261856918,0.108,4635.7,4634.8,1.0819]
[1755261857125,2.15712498,4635.8,4634.5,0.108]
[1755261857297,2.26540479,4635.2,4634.6,3.907]
[1755261857499,2.26460479,4635.2,4634.6,3.907]
[1755261857701,0.1072,4635.2,4634.6,3.907]
[1755261857897,0.108,4635.6,4635.0,0.108]
[1755261858089,2.49176855,4635.6,4635.0,0.108]
[1755261858485,0.33450949,4635.6,4635.0,0.108]
[1755261858686,0.33450949,4635.6,4634.2,2.15783498]
[1755261858687,2.15726458,4635.5,4635.1,3.905]
[1755261858931,2.15735766,4635.3,4635.2,3.904]
[1755261859287,2.26535766,4635.3,4635.2,3.904]
[1755261859891,2.15735766,4635.3,4635.2,3.904]
[1755261860592,2.1574844,4635.1,4634.2,0.001]
[1755261860895,0.108,4635.0,4634.4,0.108]
[1755261861210,2.26549915,4635.0,4634.4,0.108]
[1755261861409,0.108,4635.0,4634.4,0.108]
[1755261861817,2.26550327,4635.0,4634.4,0.108]
[1755261862015,2.15754509,4634.9,4634.4,0.108]
[1755261862219,0.108,4635.0,4634.4,0.108]
[1755261862402,2.15763585,4634.8,4634.5,3.901]
[1755261863199,2.15754396,4634.9,4634.5,3.901]
[1755261863390,0.74454909,4635.0,4634.5,3.901]
[1755261863590,2.90204875,4635.0,4634.5,3.901]
[1755261863989,1.2506902,4635.0,4634.5,3.901]
[1755261864203,0.74454909,4635.0,4634.5,3.901]
[1755261864796,0.108,4634.7,4634.5,3.901]
[1755261864993,0.108,4634.9,4634.2,0.001]
[1755261865220,0.108,4634.3,4634.2,0.001]
[1755261865734,2.26582318,4634.3,4634.2,0.001]
[1755261866120,0.108,4634.3,4634.2,0.001]
[1755261866738,2.26582318,4634.3,4634.2,0.001]
[1755261867033,2.4642079,4634.3,4634.2,0.001]
[1755261868132,2.97215006,4634.3,4634.2,0.001]
[1755261868333,2.92168369,4634.3,4634.2,0.001]
[1755261869750,0.65586051,4634.3,4634.2,0.001]
[1755261869920,2.81368369,4634.3,4634.2,0.001]
[1755261870448,2.81368369,4634.3,4634.2,3.24076975]
[1755261870449,1.03272573,4634.3,4634.2,3.24076975]
[1755261870594,0.45747579,4634.3,4634.2,1.0829]
[1755261870800,0.45747579,4634.3,4634.2,3.24076975]
[1755261871151,0.45747579,4634.3,4634.2,1.0829]
[1755261871521,0.45747579,4634.3,4634.2,0.001]
[1755261871799,2.61529897,4634.3,4634.2,0.001]
[1755261872027,3.86445035,4634.3,4634.2,0.001]
[1755261872438,3.40795035,4634.3,4634.2,0.001]
[1755261872741,4.99305035,4634.3,4634.2,0.001]
[1755261872926,5.19315444,4634.3,4634.2,0.001]
[1755261873640,8.19315444,4634.3,4634.2,0.001]
[1755261874009,7.15805444,4634.3,4634.2,0.001]
[1755261874215,7.71756601,4634.3,4634.2,0.001]
[1755261874643,5.81523663,4634.3,4634.2,0.001]
[1755261875405,0.65741345,4634.3,4634.2,0.6293]
[1755261875631,0.45747579,4634.3,4634.2,0.001]
[1755261876709,0.45747579,4634.3,4634.2,1.0839]
[1755261876946,0.45747579,4634.3,4634.2,3.24176975]
[1755261877309,0.45747579,4634.3,4634.2,7.12276975]
[1755261877505,0.45747579,4634.8,4634.7,2.15763695]
[1755261877843,0.63654909,4635.0,4634.9,2.15754385]
[1755261878050,1.09778034,4635.0,4634.9,6.03754385]
[1755261878231,1.09778034,4635.0,4634.9,7.12044385]
[1755261879420,0.002,4635.3,4635.2,2.15740421]
[1755261879626,0.46431872,4635.3,4635.2,2.26540421]
[1755261879830,0.002,4635.3,4635.2,3.34830421]
[1755261881649,0.002,4635.3,4635.2,3.34910421]
[1755261883084,0.002,4635.3,4635.2,3.9818]
[1755261883286,0.46470387,4635.3,4635.2,3.9818]
[1755261883664,0.46470387,4635.3,4635.2,3.8728]
[1755261883866,0.46470387,4635.3,4635.2,0.0008]
[1755261884045,0.46470387,4635.3,4635.2,3.8728]
[1755261884259,2.99218042,4635.3,4635.2,3.8728]
[1755261884658,2.99218042,4635.3,4635.2,0.0008]
[1755261884659,3.19301741,4635.3,4635.2,0.0008]
[1755261884858,3.8238514,4635.3,4635.2,3.8718]
[1755261885064,0.55,4635.2,4634.3,5.181]
[1755261885280,2.9288822,4634.6,4634.5,3.87]
[1755261885446,3.02205836,4634.6,4634.5,3.87]
[1755261885656,3.13005836,4634.6,4634.5,3.87]
[1755261885892,0.97237485,4634.6,4634.5,3.87]
[1755261886053,3.13005836,4634.6,4634.5,3.87]
[1755261886254,3.75425215,4634.6,4634.5,3.87]
[1755261886975,1.59656864,4634.6,4634.5,3.87]
[1755261887187,1.3419254,4634.6,4634.5,3.87]
[1755261887350,1.54276239,4634.6,4634.5,3.87]
[1755261887547,0.77154086,4634.6,4634.5,3.87]
[1755261887782,0.57070387,4634.6,4634.5,3.87]
[1755261887950,1.342141,4634.6,4634.5,3.87]
[1755261888149,2.72838738,4634.6,4634.5,3.87]
[1755261888575,3.49982451,4634.6,4634.5,3.87]
[1755261888778,3.49982451,4634.6,4634.2,0.001]
[1755261888779,2.70775393,4634.5,4634.2,0.001]
[1755261888996,0.46270387,4634.4,4634.3,7.10672318]
[1755261889306,0.002,4635.3,4635.2,2.15740421]
[1755261889596,0.002,4635.3,4635.2,6.02240421]
[1755261889777,0.04,4636.9,4635.5,2.15726458]
[1755261889951,2.1966249,4636.9,4635.5,2.15726458]
[1755261890153,0.04,4636.9,4635.5,7.10416458]